fUSD/lending_fUSD_20250327
["ID","MTS","AMOUNT","RATE_DAILY","PERIOD"]
[356723025,1743034231456,-196.4,0.00013699,2]
[356723027,1743034231467,-188.06,0.00016712,2]
[356723028,1743034231477,-326.0,0.000181,2]
[356723029,1743034231487,-150.0,0.0001991,2]
[356723030,1743034231497,-150.0,0.000208,2]
[356723031,1743034231506,-230.683956,0.00023482,2]
[356723032,1743034231516,-214.00775262,0.000236,2]
[356723033,1743034231528,-112.30829725,0.000236,2]
[356723034,1743034231537,-1646.52194604,0.000239,2]
[356723035,1743034231548,-7372.97021421,0.000239,2]
[356723036,1743034231563,-468.53761822,0.000239,2]
[356723037,1743034231575,-420.54461945,0.000239,2]
[356723038,1743034231620,-5506.931,0.000239,2]
[356723039,1743034231674,-3866.703956,0.000239,2]
[356723040,1743034231686,-1301.93554296,0.000239,2]
[356723041,1743034231790,-275.47039278,0.000239,2]
[356723091,1743034237376,-500.0,0.00023899,2]
[356723093,1743034237387,-361.74570672,0.00023899,2]
[356723095,1743034237396,-500.0,0.00023899,2]
[356723096,1743034237406,-403.25429328,0.000239,2]
[356723097,1743034237428,-941.43031319,0.000239,2]
[356723098,1743034237588,-1635.66090872,0.000239,2]
[356723099,1743034237601,-9969.03919515,0.000239,2]
[356723100,1743034237612,-200.0,0.00024099,10]
[356723101,1743034237622,-662.58,0.00024572,2]
[356723102,1743034237631,-5552.0,0.000246,3]
[356723103,1743034237642,-210.68406102,0.000249,4]
[356723104,1743034237651,-3013.41,0.0002516,2]
[356723105,1743034237662,-213.07,0.00025177,30]
[356723106,1743034237671,-250.0,0.00025215,2]
[356723107,1743034237681,-153.14,0.00025243,2]
[356723108,1743034237693,-7077.08,0.00025243,2]
[356723109,1743034237703,-1763.69126941,0.000253,5]
[356723111,1743034237720,-1572.95149155,0.000253,5]
[356723117,1743034239631,-2215.35723904,0.000253,5]
[356723118,1743034239641,-173.66,0.00025377,2]
[356723119,1743034239651,-972.22,0.00025425,2]
[356723120,1743034239661,-1000.0,0.00025476,2]
[356723121,1743034239670,-250.0,0.00025575,2]
[356723122,1743034239680,-500.0,0.00025618,2]
[356723123,1743034239689,-150.0,0.00026014,7]
[356723124,1743034239699,-783.37,0.00026014,2]
[356723125,1743034239709,-1035.66,0.00026059,2]
[356723126,1743034239718,-11394.57132266,0.00026059,2]
[356723127,1743034239730,-596.84326595,0.00026059,2]
[356723128,1743034239788,-744.96847343,0.00025243,2]
[356723129,1743034239801,-648.88152657,0.00025243,2]
[356723130,1743034239811,-8583.70541139,0.00026059,2]
[356723131,1743034239820,-294.65,0.00026059,2]
[356723132,1743034239830,-150.99,0.00026059,2]
[356723133,1743034239840,-393.52306198,0.00026101,2]
[356723134,1743034240016,-548.87693802,0.00026101,2]
[356723135,1743034240026,-80.92306198,0.00026101,2]
[356723163,1743034246429,-93.61693802,0.00026101,2]
[356723164,1743034246438,-200.0,0.00026254,2]
[356723165,1743034246448,-2149.4652,0.00026311,2]
[356723166,1743034246457,-1539.62873493,0.00026321,2]
[356723167,1743034246467,-2882.96317809,0.00026331,2]
[356723168,1743034246478,-385.39161452,0.00026331,2]
[356723170,1743034246490,-2183.75458493,0.00026331,2]
[356723172,1743034246501,-507.43308003,0.00026331,2]
[356723173,1743034246513,-295.25514135,0.00026331,2]
[356723174,1743034246524,-873.74712415,0.00026331,2]
[356723175,1743034246535,-2420.86061955,0.00026331,2]
[356723176,1743034246546,-383.87296915,0.00026331,2]
[356723177,1743034246561,-2479.97084612,0.00026331,2]
[356723178,1743034246572,-9899.01302065,0.00026331,2]
[356723179,1743034246583,-561.43781461,0.00026331,2]
[356723220,1743035431767,-196.4,0.00013699,2]
[356723221,1743035431776,-1000.0,0.000149,2]
[356723222,1743035431786,-500.0,0.00014973,2]
[356723223,1743035431795,-499.57261076,0.00014999,2]
[356723224,1743035431804,-500.0,0.00014999,2]
[356723225,1743035431814,-300.0,0.00014999,2]
[356723226,1743035431824,-599.37007805,0.00015,2]
[356723227,1743035431836,-2046.83155455,0.00015,2]
[356723228,1743035431878,-712.24024169,0.00015,2]
[356723229,1743035431890,-512.03697009,0.00015,2]
[356723230,1743035431901,-585.49977958,0.00015,2]
[356723231,1743035431912,-384.54,0.00015,2]
[356723255,1743035437662,-50077.50494189,0.00015,2]
[356723256,1743035437722,-15069.71328364,0.00015,2]
[356723257,1743035437733,-11186.32139673,0.00015,2]
[356723258,1743035437745,-1417958.28460004,0.00015,2]
[356723259,1743035437754,-940.64329565,0.00016316,2]
[356723260,1743035437763,-420.0,0.00016416,2]
[356723261,1743035437773,-150.0,0.00017598,2]
[356723262,1743035437782,-587.0,0.00017966,2]
[356723263,1743035437791,-940.64329559,0.00019381,2]
[356723264,1743035437800,-823.0,0.00019663,2]
[356723265,1743035437810,-152.24,0.0002,2]
[356723266,1743035437819,-152.24,0.0002,2]
[356723267,1743035437828,-210.684061,0.000214,2]
[356723268,1743035437838,-1152.0,0.0002152,2]
[356723269,1743035437847,-940.64329559,0.00022446,2]
[356723270,1743035437857,-641.21,0.00023347,2]
[356723271,1743035437866,-1464.0,0.00023552,2]
[356723272,1743035437876,-5551.0,0.000244,5]
[356723273,1743035437886,-152.24,0.0002479,2]
[356723280,1743035438096,-258168.53523204,0.000248,2]
[356723281,1743035438108,-942.37,0.000248,2]
[356723282,1743035438140,-770.01522852,0.000248,2]
[356723285,1743035439830,-3447.32129756,0.00014899,2]
[356723286,1743035439840,-2536.01285774,0.000248,2]
[356723287,1743035439852,-4326.4160007,0.000248,2]
[356723288,1743035439867,-4866.09620473,0.000248,2]
[356723289,1743035439879,-36262.724827,0.000248,2]
[356723290,1743035439890,-1569.19177127,0.000248,2]
[356723291,1743035439899,-5126.24335295,0.000249,2]
[356723292,1743035439944,-915.76983351,0.000249,2]
[356723293,1743035440001,-361.92035661,0.000249,2]
[356723294,1743035440160,-1003.37915697,0.000249,2]
[356723295,1743035440176,-4258.84878002,0.000249,2]
[356723296,1743035440192,-58739.78605434,0.000249,2]
[356723297,1743035440202,-250.0,0.00025,2]
[356723298,1743035440212,-641.21,0.00025611,2]
[356723299,1743035440222,-1506.7,0.00025687,2]
[356723300,1743035440232,-173.66,0.00025906,2]
[356723301,1743035440241,-1156.0,0.00025918,2]
[356723302,1743035440251,-250.0,0.00025918,2]
[356723303,1743035440261,-1000.0,0.00025941,2]
[356723304,1743035440270,-4639.67,0.00025948,2]
[356723305,1743035440280,-194.12,0.00026068,120]
[356723306,1743035440290,-200.0,0.00026068,2]
[356723307,1743035440301,-151.0,0.0002614,7]
[356723308,1743035440311,-151.0,0.0002614,7]
[356723309,1743035440320,-151.0,0.0002614,7]
[356723310,1743035440330,-151.0,0.0002614,7]
[356723311,1743035440340,-151.0,0.0002614,7]
[356723312,1743035440350,-151.0,0.0002614,7]
[356723313,1743035440361,-151.0,0.0002614,7]
[356723314,1743035440370,-151.0,0.0002614,7]
[356723315,1743035440380,-45672.09,0.0002614,2]
[356723316,1743035440390,-331.12,0.0002614,2]
[356723317,1743035440399,-195.31,0.00026142,30]
[356723318,1743035440409,-150.0,0.00026142,7]
[356723319,1743035440418,-6012.36,0.00026143,2]
[356723320,1743035440428,-500.0,0.00026155,2]
[356723321,1743035440438,-226.53,0.00026184,2]
[356723322,1743035440448,-499.99,0.00026184,2]
[356723323,1743035440457,-500.0,0.00026382,2]
[356723324,1743035440467,-5448.63,0.00026383,2]
[356723325,1743035440477,-4575.82485624,0.0002641,2]
[356723326,1743035440487,-174.55,0.00026411,2]
[356723327,1743035440496,-279.12,0.0002642,2]
[356723328,1743035440506,-200.0,0.00026463,2]
[356723329,1743035440515,-173.766,0.00026512,13]
[356723330,1743035440525,-152.0,0.00026605,3]
[356723331,1743035440535,-31386.25,0.00026768,2]
[356723332,1743035440544,-151.0,0.00026768,7]
[356723333,1743035440554,-152.357257,0.00026768,7]
[356723334,1743035440563,-151.0,0.00026768,7]
[356723335,1743035440572,-153.300914,0.00026768,7]
[356723336,1743035440582,-151.0,0.00026768,7]
[356723337,1743035440591,-151.0,0.00026768,7]
[356723338,1743035440600,-151.0,0.00026768,7]
[356723339,1743035440610,-249.8,0.00026849,2]
[356723340,1743035440620,-254.18,0.00026849,2]
[356723341,1743035440630,-173.2,0.00026849,2]
[356723342,1743035440644,-175.35,0.00026879,2]
[356723343,1743035440653,-300.0,0.00027,2]
[356723344,1743035440663,-159.73,0.00027035,2]
[356723345,1743035440672,-572.0,0.00027102,2]
[356723346,1743035440682,-1421.0,0.00027102,2]
[356723347,1743035440692,-788.0,0.00027102,2]
[356723348,1743035440701,-542.0,0.00027102,2]
[356723349,1743035440710,-2881.185,0.00027102,2]
[356723350,1743035440719,-907.0,0.00027102,2]
[356723351,1743035440728,-1431.0,0.00027102,2]
[356723352,1743035440737,-151.0,0.00027102,2]
[356723353,1743035440747,-151.0,0.00027102,2]
[356723354,1743035440756,-2037.0,0.00027102,2]
[356723355,1743035440765,-1281.0,0.00027102,2]
[356723356,1743035440775,-3524.28,0.00027123,2]
[356723357,1743035440784,-159.73,0.00027133,2]
[356723358,1743035440794,-1385.66586141,0.0002723,2]
[356723359,1743035440803,-159.73,0.00027232,2]
[356723360,1743035440813,-151.0,0.00027297,7]
[356723361,1743035440822,-151.0,0.00027297,7]
[356723362,1743035440831,-151.0,0.00027297,7]
[356723363,1743035440840,-151.0,0.00027297,7]
[356723364,1743035440849,-19767.1978,0.00027297,2]
[356723365,1743035440859,-159.73,0.0002733,2]
[356723366,1743035440868,-151.0,0.0002733,7]
[356723367,1743035440877,-151.0,0.0002733,7]
[356723368,1743035440887,-341.279692,0.0002733,7]
[356723369,1743035440896,-204.20737,0.0002733,7]
[356723370,1743035440906,-341.279692,0.0002733,7]
[356723371,1743035440916,-241.193342,0.0002733,7]
[356723372,1743035440926,-151.0,0.0002733,7]
[356723373,1743035440936,-151.0,0.0002733,7]
[356723374,1743035440946,-151.0,0.0002733,7]
[356723375,1743035440955,-151.0,0.0002733,7]
[356723376,1743035440964,-500.0,0.00027345,2]
[356723377,1743035440973,-500.0,0.00027345,2]
[356723378,1743035440983,-500.0,0.00027345,2]
[356723379,1743035440993,-151.0,0.00027397,7]
[356723380,1743035441002,-164.828568,0.00027397,7]
[356723381,1743035441011,-164.828568,0.00027397,7]
[356723382,1743035441020,-151.0,0.00027397,7]
[356723383,1743035441030,-152.330804,0.00027397,7]
[356723384,1743035441040,-1558.28352,0.00027397,7]
[356723385,1743035441050,-413.696039,0.00027397,7]
[356723386,1743035441059,-413.696039,0.00027397,7]
[356723387,1743035441068,-151.0,0.00027397,7]
[356723388,1743035441078,-1500.0,0.00027397,60]
[356723389,1743035441087,-151.0,0.00027397,7]
[356723390,1743035441097,-496.26,0.00027397,2]
[356723391,1743035441108,-823.62,0.00027397,2]
[356723392,1743035441118,-159.73,0.00027428,2]
[356723393,1743035441127,-23900.0,0.0002744,2]
[356723394,1743035441137,-159.73,0.00027527,2]
[356723395,1743035441147,-162.61,0.00027555,2]
[356723396,1743035441156,-159.73,0.00027625,2]
[356723397,1743035441166,-500.0,0.00027671,2]
[356723398,1743035441175,-159.73,0.00027723,2]
[356723399,1743035441185,-169.1715,0.00027775,2]
[356723400,1743035441195,-152.24,0.0002779,2]
[356723401,1743035441205,-11773.399,0.000278,2]
[356723402,1743035441215,-2500.0,0.000278,2]
[356723403,1743035441224,-151.0,0.000278,7]
[356723404,1743035441234,-151.0,0.000278,7]
[356723405,1743035441244,-341.279692,0.000278,7]
[356723406,1743035441253,-341.279692,0.000278,7]
[356723407,1743035441263,-151.0,0.000278,7]
[356723408,1743035441273,-151.0,0.000278,7]
[356723409,1743035441283,-151.0,0.000278,7]
[356723410,1743035441293,-151.0,0.000278,7]
[356723411,1743035441302,-151.0,0.000278,7]
[356723412,1743035441312,-151.0,0.000278,7]
[356723413,1743035441322,-206.943136,0.000278,7]
[356723414,1743035441331,-151.0,0.000278,7]
[356723415,1743035441341,-159.73,0.00027821,2]
[356723416,1743035441350,-641.21,0.00027875,2]
[356723417,1743035441361,-10229.3333,0.000279,2]
[356723418,1743035441370,-1465.2653,0.000279,2]
[356723419,1743035441380,-4130.92,0.000279,2]
[356723420,1743035441390,-269.0,0.000279,7]
[356723421,1743035441400,-151.0,0.000279,7]
[356723422,1743035441409,-164.828568,0.000279,7]
[356723423,1743035441418,-164.828568,0.000279,7]
[356723424,1743035441428,-231.87914,0.000279,7]
[356723425,1743035441437,-1558.28352,0.000279,7]
[356723426,1743035441447,-413.696039,0.000279,7]
[356723427,1743035441457,-413.696039,0.000279,7]
[356723428,1743035441466,-151.0,0.000279,7]
[356723429,1743035441476,-159.73,0.0002792,2]
[356723430,1743035441485,-150.0,0.00027999,2]
[356723431,1743035441495,-36237.23836887,0.00028,14]
[356723432,1743035441504,-151.0,0.00028,7]
[356723433,1743035441514,-151.0,0.00028,7]
[356723434,1743035441523,-151.0,0.00028,7]
[356723435,1743035441532,-151.0,0.00028,7]
[356723436,1743035441542,-151.0,0.00028,7]
[356723437,1743035441551,-172.936356,0.00028,7]
[356723438,1743035441561,-151.0,0.00028,7]
[356723439,1743035441571,-151.0,0.00028,7]
[356723440,1743035441581,-151.0,0.00028,7]
[356723441,1743035441591,-157.818794,0.00028,7]
[356723442,1743035441601,-341.279692,0.00028,7]
[356723443,1743035441611,-341.279692,0.00028,7]
[356723444,1743035441620,-151.0,0.00028,7]
[356723445,1743035441631,-151.0,0.00028,7]
[356723446,1743035441644,-151.0,0.00028,7]
[356723447,1743035441654,-151.0,0.00028,7]
[356723448,1743035441663,-151.0,0.00028,7]
[356723449,1743035441675,-151.0,0.00028,7]
[356723450,1743035441684,-151.0,0.00028,7]
[356723451,1743035441694,-159.73,0.00028018,2]
[356723452,1743035441703,-152.0,0.00028038,4]
[356723453,1743035441713,-159.73,0.00028116,2]
[356723454,1743035441723,-151.0,0.00028408,7]
[356723455,1743035441733,-164.828568,0.00028408,7]
[356723456,1743035441742,-164.828568,0.00028408,7]
[356723457,1743035441752,-1558.28352,0.00028408,7]
[356723458,1743035441762,-413.696039,0.00028408,7]
[356723459,1743035441772,-413.696039,0.00028408,7]
[356723460,1743035441781,-500.0,0.00028408,2]
[356723461,1743035441791,-823.62,0.00028767,2]
[356723462,1743035441800,-350.0,0.00029,2]
[356723463,1743035441810,-151.0,0.00029055,7]
[356723464,1743035441819,-203.139034,0.00029055,7]
[356723465,1743035441828,-151.0,0.00029055,7]
[356723466,1743035441838,-151.0,0.00029055,7]
[356723467,1743035441848,-151.0,0.00029055,7]
[356723468,1743035441858,-151.0,0.00029055,7]
[356723469,1743035441868,-1385.66586139,0.00029082,2]
[356723470,1743035441878,-1000.0,0.00029184,2]
[356723471,1743035441887,-369.0,0.000292,2]
[356723472,1743035441897,-966.0,0.000292,2]
[356723473,1743035441906,-151.0,0.00029257,7]
[356723474,1743035441916,-151.0,0.00029257,7]
[356723475,1743035441925,-151.0,0.00029257,7]
[356723476,1743035441935,-194.12,0.00029326,120]
[356723477,1743035441944,-152.0,0.00029471,5]
[356723478,1743035441953,-162.61,0.00029829,2]
[356723479,1743035441963,-199.841,0.00030102,2]
[356723480,1743035441972,-402.27,0.00030102,2]
[356723481,1743035441982,-151.0,0.00030102,2]
[356723482,1743035441991,-2037.0,0.00030102,2]
[356723483,1743035442001,-11962.52,0.0003011,2]
[356723484,1743035442011,-823.62,0.00030137,2]
[356723485,1743035442020,-641.21,0.00030139,2]
[356723486,1743035442030,-1801.32995825,0.000306,2]
[356723487,1743035442204,-3746.39254542,0.000306,2]
[356723488,1743035442215,-195.31,0.0003062,30]
[356723489,1743035442226,-152.0,0.00030905,6]
[356723490,1743035442235,-167.58414423,0.00030905,5]
[356723491,1743035442246,-1385.66586139,0.00030934,2]
[356723492,1743035442255,-400.0,0.00031,2]
[356723493,1743035442265,-574.65146341,0.00031236,2]
[356723494,1743035442274,-823.62,0.00031507,2]
[356723495,1743035442284,-151.0,0.00031769,7]
[356723496,1743035442294,-164.828568,0.00031769,7]
[356723497,1743035442304,-164.828568,0.00031769,7]
[356723498,1743035442314,-1558.28352,0.00031769,7]
[356723499,1743035442323,-413.696039,0.00031769,7]
[356723500,1743035442333,-413.696039,0.00031769,7]
[356723501,1743035442342,-151.0,0.00031769,7]
[356723502,1743035442352,-341.279692,0.00031769,7]
[356723503,1743035442363,-341.279692,0.00031769,7]
[356723504,1743035442373,-151.0,0.00031769,7]
[356723505,1743035442382,-151.0,0.00031769,7]
[356723506,1743035442392,-162.181514,0.00031769,7]
[356723507,1743035442401,-291.039492,0.00031769,7]
[356723508,1743035442411,-151.0,0.00031769,7]
[356723509,1743035442420,-162.649508,0.00031769,7]
[356723510,1743035442430,-10992.7392,0.00031769,2]
[356723511,1743035442439,-162.61,0.00032102,2]
[356723512,1743035442449,-987.37038524,0.0003223,4]
[356723513,1743035442458,-4578.77,0.00032232,2]
[356723514,1743035442469,-151.0,0.00032301,7]
[356723515,1743035442478,-14721.3422456,0.0003233,7]
[356723516,1743035442487,-500.0,0.0003233,7]
[356723517,1743035442497,-215.48767317,0.0003233,7]
[356723518,1743035442506,-1623.54143105,0.0003233,5]
[356723519,1743035442516,-5574.97256491,0.0003233,7]
[356723520,1743035442525,-151.0,0.0003233,7]
[356723521,1743035442535,-151.0,0.0003233,7]
[356723522,1743035442545,-301.440673,0.0003233,7]
[356723523,1743035442555,-151.0,0.0003233,7]
[356723524,1743035442564,-151.0,0.0003233,7]
[356723525,1743035442574,-151.0,0.0003233,7]
[356723526,1743035442583,-151.0,0.0003233,7]
[356723527,1743035442593,-153.477013,0.0003233,7]
[356723529,1743035442602,-151.0,0.0003233,7]
[356723530,1743035442612,-151.0,0.0003233,7]
[356723531,1743035442622,-151.0,0.0003233,7]
[356723532,1743035442634,-151.0,0.0003233,7]
[356723533,1743035442643,-151.0,0.0003233,7]
[356723534,1743035442652,-282.199322,0.0003233,7]
[356723535,1743035442662,-192.056999,0.0003233,7]
[356723536,1743035442671,-151.0,0.0003233,7]
[356723537,1743035442680,-153.162332,0.0003233,7]
[356723538,1743035442690,-151.953114,0.0003233,7]
[356723539,1743035442699,-151.0,0.0003233,7]
[356723540,1743035442709,-151.0,0.0003233,7]
[356723541,1743035442718,-153.48537,0.0003233,7]
[356723542,1743035442727,-151.0,0.0003233,7]
[356723543,1743035442737,-154.386564,0.0003233,7]
[356723544,1743035442746,-151.0,0.0003233,7]
[356723545,1743035442755,-151.0,0.0003233,7]
[356723546,1743035442765,-151.0,0.0003233,7]
[356723547,1743035442775,-151.0,0.0003233,7]
[356723548,1743035442785,-151.0,0.0003233,7]
[356723549,1743035442795,-151.0,0.0003233,7]
[356723550,1743035442804,-151.0,0.0003233,7]
[356723551,1743035442814,-151.0,0.0003233,7]
[356723552,1743035442823,-151.0,0.0003233,7]
[356723553,1743035442833,-151.0,0.0003233,7]
[356723554,1743035442842,-229.583782,0.0003233,7]
[356723555,1743035442851,-151.0,0.0003233,7]
[356723556,1743035442862,-151.0,0.0003233,7]
[356723557,1743035442871,-151.0,0.0003233,7]
[356723558,1743035442880,-151.0,0.0003233,7]
[356723559,1743035442890,-360.031074,0.0003233,14]
[356723560,1743035442899,-151.0,0.00032331,7]
[356723561,1743035442908,-151.0,0.00032331,7]
[356723562,1743035442918,-151.0,0.00032331,7]
[356723563,1743035442928,-151.0,0.00032331,7]
[356723564,1743035442938,-641.21,0.00032403,2]
[356723565,1743035442948,-1000.0,0.00032426,2]
[356723566,1743035442957,-194.12,0.00032585,120]
[356723567,1743035442967,-249.8,0.00032646,2]
[356723568,1743035442976,-254.18,0.00032646,2]
[356723569,1743035442986,-1385.66586139,0.00032787,2]
[356723570,1743035442995,-568.1274717,0.00032825,5]
[356723571,1743035443005,-500.0,0.00032825,5]
[356723572,1743035443015,-491.0,0.00032849,2]
[356723573,1743035443024,-823.62,0.00032877,2]
[356723574,1743035443034,-500.0,0.00032877,2]
[356723575,1743035443044,-151.0,0.0003299,7]
[356723576,1743035443053,-164.828568,0.0003299,7]
[356723577,1743035443063,-164.828568,0.0003299,7]
[356723578,1743035443072,-1558.28352,0.0003299,7]
[356723579,1743035443081,-413.696039,0.0003299,7]
[356723580,1743035443091,-413.696039,0.0003299,7]
[356723581,1743035443101,-341.279692,0.0003299,7]
[356723582,1743035443112,-341.279692,0.0003299,7]
[356723583,1743035443122,-151.0,0.0003299,7]
[356723584,1743035443132,-151.0,0.0003299,7]
[356723585,1743035443142,-450.0,0.00033,2]
[356723586,1743035443151,-150.0,0.000331,2]
[356723587,1743035443161,-151.0,0.00033102,2]
[356723588,1743035443171,-2031.0,0.00033102,2]
[356723589,1743035443180,-500.0,0.00034521,2]
[356723590,1743035443190,-1385.66586139,0.00034639,2]
[356723591,1743035443199,-641.21,0.00034667,2]
[356723592,1743035443209,-829.0,0.00034748,5]
[356723593,1743035443218,-169.61077808,0.00034777,7]
[356723595,1743035443227,-500.0,0.00035,2]
[356723596,1743035443235,-195.31,0.00035098,120]
[356723597,1743035443245,-150.68,0.00035616,2]
[356723598,1743035443254,-1000.0,0.00035669,2]
[356723599,1743035443263,-194.12,0.00035843,120]
[356723601,1743035443273,-1506.7,0.00035962,2]
[356723602,1743035443283,-500.27681128,0.00036165,2]
[356723603,1743035443293,-1385.66586139,0.00036491,2]
[356723604,1743035443302,-150.68,0.00036729,2]
[356723605,1743035443312,-641.21,0.00036931,2]
[356723606,1743035443321,-550.0,0.00037,2]
[356723607,1743035443331,-226.53,0.00037417,2]
[356723608,1743035443339,-150.68,0.00037842,2]
[356723609,1743035443349,-1385.66586139,0.00038343,2]
[356723610,1743035443359,-249.8,0.00038443,2]
[356723611,1743035443368,-254.18,0.00038443,2]
[356723612,1743035443377,-300.59924175,0.00038798,7]
[356723613,1743035443387,-1000.0,0.00038798,7]
[356723614,1743035443396,-300.0,0.00038798,7]
[356723615,1743035443405,-1000.0,0.00038912,2]
[356723616,1743035443415,-150.68,0.00038955,2]
[356723617,1743035443424,-248.57377578,0.00039,120]
[356723618,1743035443433,-600.0,0.00039,2]
[356723619,1743035443442,-151.0,0.00039,14]
[356723620,1743035443451,-151.0,0.00039,14]
[356723621,1743035443460,-151.0,0.00039,14]
[356723622,1743035443469,-152.450542,0.00039,14]
[356723623,1743035443478,-159.59124151,0.00039014,30]
[356723624,1743035443487,-500.0,0.00039068,60]
[356723625,1743035443497,-1100.0,0.00039068,60]
[356723626,1743035443506,-194.12,0.00039102,120]
[356723627,1743035443515,-150.0,0.00039133,120]
[356723628,1743035443524,-159.59124151,0.00039178,30]
[356723629,1743035443534,-641.21,0.00039195,2]
[356723630,1743035443543,-159.59124151,0.00039342,30]
[356723631,1743035443552,-159.59124151,0.00039507,30]
[356723632,1743035443562,-219.658944,0.00039576,14]
[356723633,1743035443571,-195.31,0.00039576,120]
[356723634,1743035443581,-152.248455,0.00039606,14]
[356723635,1743035443590,-151.0,0.00039606,14]
[356723636,1743035443599,-151.0,0.00039606,14]
[356723637,1743035443608,-151.0,0.00039606,14]
[356723638,1743035443617,-151.0,0.00039606,14]
[356723639,1743035443627,-151.0,0.00039606,14]
[356723640,1743035443640,-151.0,0.00039606,14]
[356723641,1743035443649,-151.0,0.00039606,14]
[356723642,1743035443658,-151.0,0.00039606,14]
[356723643,1743035443667,-151.0,0.00039606,14]
[356723644,1743035443677,-151.0,0.00039606,14]
[356723645,1743035443686,-151.0,0.00039606,14]
[356723646,1743035443696,-288.404313,0.00039606,14]
[356723647,1743035443707,-164.828568,0.00039606,14]
[356723648,1743035443716,-164.828568,0.00039606,14]
[356723649,1743035443726,-1558.28352,0.00039606,14]
[356723650,1743035443735,-413.696039,0.00039606,14]
[356723651,1743035443744,-413.696039,0.00039606,14]
[356723652,1743035443753,-341.279692,0.00039606,14]
[356723653,1743035443763,-341.279692,0.00039606,14]
[356723654,1743035443772,-151.0,0.00039606,14]
[356723655,1743035443781,-151.0,0.00039606,14]
[356723656,1743035443790,-500.0,0.00039616,60]
[356723657,1743035443799,-1100.0,0.00039616,60]
[356723658,1743035443809,-151.0,0.00039616,14]
[356723659,1743035443818,-151.0,0.00039616,14]
[356723660,1743035443827,-151.0,0.00039616,14]
[356723661,1743035443836,-159.59124151,0.00039699,30]
[356723662,1743035443845,-159.59124151,0.00039863,30]
[356723663,1743035443855,-351.01,0.000399,7]
[356723664,1743035443864,-157.921274,0.0003999,14]
[356723665,1743035443874,-2501.38651361,0.0004,120]
[356723666,1743035443883,-151.0,0.0004,14]
[356723667,1743035443892,-151.0,0.0004,14]
[356723668,1743035443902,-151.0,0.0004,14]
[356723669,1743035443911,-159.59124151,0.00040027,30]
[356723670,1743035443920,-150.68,0.00040068,2]
[356723671,1743035443929,-1100.0,0.00040164,60]
[356723672,1743035443938,-1385.66586139,0.00040196,15]
[356723673,1743035443947,-159.59124151,0.00040219,30]
[356723674,1743035443957,-151.0,0.0004023,14]
[356723675,1743035443966,-151.0,0.0004023,14]
[356723676,1743035443975,-159.59124151,0.00040384,30]
[356723677,1743035443984,-159.59124151,0.00040548,30]
[356723678,1743035443994,-1100.0,0.00040712,60]
[356723679,1743035444003,-500.0,0.00040712,60]
[356723680,1743035444012,-157.654949,0.00040712,14]
[356723681,1743035444021,-151.0,0.00040712,14]
[356723682,1743035444031,-159.59124151,0.0004074,30]
[356723683,1743035444040,-152.0,0.00041,14]
[356723684,1743035444049,-151.0,0.00041085,14]
[356723685,1743035444059,-151.0,0.00041085,14]